[Event "Titled Tuesday Blitz March 07 Late 2023"]
[White "Kujawski, Adam"]
[Black "Hernandez Gonzalez, William"]
[WhiteFideId "1100920"]
[BlackFideId "3509915"]
[WhiteElo "2054"]
[BlackElo "2374"]
[Result "0-1"]
[Round "01"]
[TimeControl "180+2"]
[Date "2023.03.07"]
[WhiteClock "0:00:03"]
[BlackClock "0:00:38"]

1. e4 {[%clk 0:02:55]}  c5 {[%clk 0:02:59]} 2. Nf3 {[%clk 0:02:55]}  Nc6 {[%clk 0:02:59]} 3. Nc3 {[%clk 0:02:55]}  e5 {[%clk 0:02:58]} 4. Bc4 {[%clk 0:02:54]}  d6 {[%clk 0:02:58]} 5. d3 {[%clk 0:02:54]}  Be7 {[%clk 0:02:58]} 6. h3 {[%clk 0:02:54]}  Nf6 {[%clk 0:02:58]} 7. a4 {[%clk 0:02:50]}  Be6 {[%clk 0:02:57]} 8. Nd5 {[%clk 0:02:48]}  O-O {[%clk 0:02:56]} 9. c3 {[%clk 0:02:30]}  h6 {[%clk 0:02:53]} 10. Nd2 {[%clk 0:02:30]}  Nh7 {[%clk 0:02:51]} 11. Nf1 {[%clk 0:02:29]}  Bg5 {[%clk 0:02:50]} 12. Nfe3 {[%clk 0:02:25]}  Ne7 {[%clk 0:02:45]} 13. Nxe7+ {[%clk 0:02:23]}  Qxe7 {[%clk 0:02:44]} 14. Nd5 {[%clk 0:02:24]}  Bxd5 {[%clk 0:02:43]} 15. Bxd5 {[%clk 0:02:24]}  Bxc1 {[%clk 0:02:39]} 16. Qxc1 {[%clk 0:02:20]}  Rab8 {[%clk 0:02:39]} 17. O-O {[%clk 0:02:16]}  Nf6 {[%clk 0:02:34]} 18. Bc4 {[%clk 0:02:14]}  Nh5 {[%clk 0:02:33]} 19. g3 {[%clk 0:02:12]}  Kh8 {[%clk 0:02:27]} 20. Qd1 {[%clk 0:02:03]}  g6 {[%clk 0:02:23]} 21. Kh2 {[%clk 0:02:00]}  Ng7 {[%clk 0:02:17]} 22. f4 {[%clk 0:01:57]}  exf4 {[%clk 0:02:14]} 23. gxf4 {[%clk 0:01:57]}  f5 {[%clk 0:02:10]} 24. Qf3 {[%clk 0:01:54]}  fxe4 {[%clk 0:02:05]} 25. dxe4 {[%clk 0:01:54]}  Rf6 {[%clk 0:02:04]} 26. Rae1 {[%clk 0:01:30]}  Rbf8 {[%clk 0:02:02]} 27. Qg4 {[%clk 0:01:28]}  Rxf4 {[%clk 0:01:44]} 28. Rxf4 {[%clk 0:01:27]}  Qe5 {[%clk 0:01:42]} 29. Rf1 {[%clk 0:00:43]}  g5 {[%clk 0:01:40]} 30. Kg2 {[%clk 0:00:35]}  gxf4 {[%clk 0:01:36]} 31. Kf3 {[%clk 0:00:20]}  Nh5 {[%clk 0:00:56]} 32. Qg6 {[%clk 0:00:11]}  Qg5 {[%clk 0:00:50]} 33. Qxg5 {[%clk 0:00:07]}  hxg5 {[%clk 0:00:50]} 34. Kg4 {[%clk 0:00:08]}  Nf6+ {[%clk 0:00:40]} 35. Kxg5 {[%clk 0:00:04]}  Nxe4+ {[%clk 0:00:40]} 36. Kg6 {[%clk 0:00:03]}  Nd2 {[%clk 0:00:38]} 0-1


[Site "https://www.chess.com"]

[Event "Titled Tuesday Blitz March 07 Late 2023"]
[White "Riff, Vincent"]
[Black "Goldgewicht, Lionel"]
[WhiteFideId "617776"]
[BlackFideId "604313"]
[WhiteElo "2369"]
[BlackElo "2349"]
[Result "0-1"]
[Round "01"]
[TimeControl "180+2"]
[Date "2023.03.07"]
[WhiteClock "0:00:30"]
[BlackClock "0:00:29"]

1. e4 {[%clk 0:03:00]}  c5 {[%clk 0:02:46]} 2. Nc3 {[%clk 0:02:59]}  d6 {[%clk 0:02:46]} 3. Nf3 {[%clk 0:02:59]}  a6 {[%clk 0:02:45]} 4. g3 {[%clk 0:02:57]}  Nc6 {[%clk 0:02:44]} 5. Bg2 {[%clk 0:02:56]}  g6 {[%clk 0:02:44]} 6. d4 {[%clk 0:02:55]}  cxd4 {[%clk 0:02:44]} 7. Nxd4 {[%clk 0:02:55]}  Bg7 {[%clk 0:02:44]} 8. Be3 {[%clk 0:02:51]}  Nf6 {[%clk 0:02:44]} 9. h3 {[%clk 0:02:51]}  O-O {[%clk 0:02:42]} 10. O-O {[%clk 0:02:50]}  Bd7 {[%clk 0:02:39]} 11. Nb3 {[%clk 0:02:48]}  Rc8 {[%clk 0:02:34]} 12. a4 {[%clk 0:02:37]}  Ne5 {[%clk 0:02:28]} 13. Nd2 {[%clk 0:02:26]}  b5 {[%clk 0:02:26]} 14. axb5 {[%clk 0:02:25]}  axb5 {[%clk 0:02:26]} 15. f4 {[%clk 0:02:24]}  Nc4 {[%clk 0:02:25]} 16. Nxc4 {[%clk 0:02:24]}  bxc4 {[%clk 0:02:25]} 17. Ra7 {[%clk 0:02:19]}  Bc6 {[%clk 0:02:20]} 18. Bd4 {[%clk 0:02:08]}  Ra8 {[%clk 0:02:15]} 19. Qa1 {[%clk 0:01:42]}  Qb8 {[%clk 0:02:01]} 20. e5 {[%clk 0:01:33]}  Bxg2 {[%clk 0:01:39]} 21. exf6 {[%clk 0:01:31]}  Bxf6 {[%clk 0:01:35]} 22. Kxg2 {[%clk 0:01:23]}  Bxd4 {[%clk 0:01:32]} 23. Rxa8 {[%clk 0:01:22]}  Qxa8+ {[%clk 0:01:31]} 24. Qxa8 {[%clk 0:01:23]}  Rxa8 {[%clk 0:01:31]} 25. Nd5 {[%clk 0:01:05]}  e6 {[%clk 0:01:21]} 26. Rd1 {[%clk 0:01:03]}  Bc5 {[%clk 0:01:12]} 27. Nf6+ {[%clk 0:01:00]}  Kg7 {[%clk 0:01:11]} 28. Ne4 {[%clk 0:01:01]}  Ra2 {[%clk 0:01:06]} 29. Rb1 {[%clk 0:00:54]}  Bb4 {[%clk 0:00:38]} 30. c3 {[%clk 0:00:51]}  d5 {[%clk 0:00:38]} 31. cxb4 {[%clk 0:00:45]}  dxe4 {[%clk 0:00:38]} 32. Kf1 {[%clk 0:00:43]}  Ra4 {[%clk 0:00:34]} 33. Ke2 {[%clk 0:00:42]}  Rxb4 {[%clk 0:00:35]} 34. Ke3 {[%clk 0:00:41]}  c3 {[%clk 0:00:32]} 35. b3 {[%clk 0:00:40]}  c2 {[%clk 0:00:32]} 36. Rc1 {[%clk 0:00:38]}  Rxb3+ {[%clk 0:00:32]} 37. Kxe4 {[%clk 0:00:38]}  Rxg3 {[%clk 0:00:32]} 38. Rxc2 {[%clk 0:00:39]}  Rxh3 {[%clk 0:00:32]} 39. Rc7 {[%clk 0:00:39]}  Ra3 {[%clk 0:00:32]} 40. Rb7 {[%clk 0:00:39]}  h5 {[%clk 0:00:31]} 41. Rb8 {[%clk 0:00:36]}  Kf6 {[%clk 0:00:31]} 42. Rh8 {[%clk 0:00:35]}  Ra4+ {[%clk 0:00:31]} 43. Ke3 {[%clk 0:00:35]}  Kf5 {[%clk 0:00:31]} 44. Rf8 {[%clk 0:00:34]}  f6 {[%clk 0:00:31]} 45. Rb8 {[%clk 0:00:34]}  Ra3+ {[%clk 0:00:31]} 46. Kf2 {[%clk 0:00:33]}  Kxf4 {[%clk 0:00:31]} 47. Rb4+ {[%clk 0:00:34]}  Kf5 {[%clk 0:00:30]} 48. Kg2 {[%clk 0:00:33]}  e5 {[%clk 0:00:31]} 49. Kh2 {[%clk 0:00:30]}  g5 {[%clk 0:00:31]} 50. Rb2 {[%clk 0:00:30]}  h4 {[%clk 0:00:30]} 51. Rf2+ {[%clk 0:00:30]}  Kg6 {[%clk 0:00:30]} 52. Rf3 {[%clk 0:00:30]}  Rxf3 {[%clk 0:00:29]} 0-1


[Site "https://www.chess.com"]

[Event "Titled Tuesday Blitz March 07 Late 2023"]
[White "Rastbod, Ali"]
[Black "Lacasa Diaz, Jose Antonio"]
[WhiteFideId "12567477"]
[BlackFideId "2203375"]
[WhiteElo "2211"]
[BlackElo "2338"]
[Result "1-0"]
[Round "01"]
[TimeControl "180+2"]
[Date "2023.03.07"]
[WhiteClock "0:00:40"]
[BlackClock "0:00:05"]

1. e4 {[%clk 0:02:57]}  c5 {[%clk 0:02:57]} 2. Nc3 {[%clk 0:02:57]}  g6 {[%clk 0:02:56]} 3. g3 {[%clk 0:02:53]}  Bg7 {[%clk 0:02:55]} 4. Bg2 {[%clk 0:02:54]}  Nc6 {[%clk 0:02:55]} 5. d3 {[%clk 0:02:53]}  d6 {[%clk 0:02:55]} 6. Be3 {[%clk 0:02:48]}  Rb8 {[%clk 0:02:53]} 7. Qd2 {[%clk 0:02:47]}  b5 {[%clk 0:02:50]} 8. Nge2 {[%clk 0:02:47]}  Nd4 {[%clk 0:02:39]} 9. Nc1 {[%clk 0:02:42]}  b4 {[%clk 0:02:36]} 10. Nd1 {[%clk 0:02:41]}  e6 {[%clk 0:02:27]} 11. O-O {[%clk 0:02:34]}  h5 {[%clk 0:02:25]} 12. h3 {[%clk 0:02:27]}  Ne7 {[%clk 0:02:23]} 13. c3 {[%clk 0:02:26]}  Ndc6 {[%clk 0:02:22]} 14. d4 {[%clk 0:02:23]}  bxc3 {[%clk 0:02:01]} 15. bxc3 {[%clk 0:02:18]}  cxd4 {[%clk 0:01:59]} 16. cxd4 {[%clk 0:02:19]}  d5 {[%clk 0:01:59]} 17. e5 {[%clk 0:02:17]}  Nf5 {[%clk 0:01:51]} 18. Nb3 {[%clk 0:02:01]}  Ba6 {[%clk 0:01:33]} 19. Re1 {[%clk 0:02:00]}  O-O {[%clk 0:01:27]} 20. Nc5 {[%clk 0:01:59]}  Bc4 {[%clk 0:01:26]} 21. Nb2 {[%clk 0:01:43]}  Nxe3 {[%clk 0:01:05]} 22. Rxe3 {[%clk 0:01:26]}  Ne7 {[%clk 0:00:41]} 23. Qc3 {[%clk 0:01:14]}  Nf5 {[%clk 0:00:38]} 24. Ree1 {[%clk 0:01:13]}  Qe7 {[%clk 0:00:14]} 25. Nxc4 {[%clk 0:00:55]}  dxc4 {[%clk 0:00:15]} 26. Qxc4 {[%clk 0:00:56]}  Rfd8 {[%clk 0:00:15]} 27. Rad1 {[%clk 0:00:56]}  Rbc8 {[%clk 0:00:11]} 28. Qa4 {[%clk 0:00:48]}  Nxd4 {[%clk 0:00:11]} 29. Nb7 {[%clk 0:00:48]}  Ne2+ {[%clk 0:00:09]} 30. Rxe2 {[%clk 0:00:43]}  Rxd1+ {[%clk 0:00:08]} 31. Qxd1 {[%clk 0:00:44]}  Qa3 {[%clk 0:00:06]} 32. Rc2 {[%clk 0:00:42]}  Rb8 {[%clk 0:00:06]} 33. Qd6 {[%clk 0:00:40]}  Qa4 {[%clk 0:00:05]} 1-0


[Site "https://www.chess.com"]

[Event "Titled Tuesday Blitz March 07 Late 2023"]
[White "Bogaudinov, Rushan"]
[Black "Zhu, Jiner"]
[WhiteFideId "4129288"]
[BlackFideId "8608059"]
[WhiteElo "1949"]
[BlackElo "2384"]
[Result "1-0"]
[Round "01"]
[TimeControl "180+2"]
[Date "2023.03.07"]
[WhiteClock "0:00:13"]
[BlackClock "0:00:05"]

1. d4 {[%clk 0:03:00]}  Nf6 {[%clk 0:02:52]} 2. Nf3 {[%clk 0:03:00]}  g6 {[%clk 0:02:52]} 3. g3 {[%clk 0:02:59]}  Bg7 {[%clk 0:02:52]} 4. Bg2 {[%clk 0:03:00]}  O-O {[%clk 0:02:52]} 5. O-O {[%clk 0:03:01]}  d5 {[%clk 0:02:53]} 6. b3 {[%clk 0:03:00]}  c6 {[%clk 0:02:51]} 7. Bb2 {[%clk 0:02:59]}  a5 {[%clk 0:02:51]} 8. a3 {[%clk 0:02:59]}  Ne4 {[%clk 0:02:50]} 9. Nbd2 {[%clk 0:02:56]}  Bf5 {[%clk 0:02:47]} 10. c4 {[%clk 0:02:52]}  Nd7 {[%clk 0:02:42]} 11. Nxe4 {[%clk 0:02:40]}  Bxe4 {[%clk 0:02:41]} 12. e3 {[%clk 0:02:38]}  a4 {[%clk 0:02:34]} 13. cxd5 {[%clk 0:02:31]}  cxd5 {[%clk 0:02:34]} 14. bxa4 {[%clk 0:02:22]}  Nb6 {[%clk 0:02:31]} 15. Bc3 {[%clk 0:02:21]}  Nxa4 {[%clk 0:02:26]} 16. Bb4 {[%clk 0:02:21]}  Nb2 {[%clk 0:01:42]} 17. Qb3 {[%clk 0:02:09]}  Nc4 {[%clk 0:01:41]} 18. Rfc1 {[%clk 0:01:48]}  Qb6 {[%clk 0:01:41]} 19. Qd1 {[%clk 0:01:40]}  Rfe8 {[%clk 0:01:25]} 20. Nd2 {[%clk 0:01:38]}  Bxg2 {[%clk 0:01:25]} 21. Kxg2 {[%clk 0:01:38]}  Qa6 {[%clk 0:01:02]} 22. Nxc4 {[%clk 0:01:18]}  dxc4 {[%clk 0:01:03]} 23. a4 {[%clk 0:00:58]}  e6 {[%clk 0:00:58]} 24. a5 {[%clk 0:00:56]}  Rec8 {[%clk 0:00:51]} 25. Bc3 {[%clk 0:00:48]}  h5 {[%clk 0:00:44]} 26. h4 {[%clk 0:00:48]}  Qc6+ {[%clk 0:00:44]} 27. Qf3 {[%clk 0:00:47]}  Qd7 {[%clk 0:00:22]} 28. Rab1 {[%clk 0:00:46]}  Rc6 {[%clk 0:00:17]} 29. Rb2 {[%clk 0:00:44]}  Rac8 {[%clk 0:00:16]} 30. Rcb1 {[%clk 0:00:44]}  R8c7 {[%clk 0:00:12]} 31. Rb5 {[%clk 0:00:42]}  Bf8 {[%clk 0:00:10]} 32. g4 {[%clk 0:00:41]}  hxg4 {[%clk 0:00:10]} 33. Qxg4 {[%clk 0:00:42]}  Kh7 {[%clk 0:00:06]} 34. h5 {[%clk 0:00:41]}  Bg7 {[%clk 0:00:06]} 35. Rh1 {[%clk 0:00:40]}  Kg8 {[%clk 0:00:05]} 36. hxg6 {[%clk 0:00:40]}  f5 {[%clk 0:00:05]} 37. Qh5 {[%clk 0:00:36]}  Rd6 {[%clk 0:00:05]} 38. Qh7+ {[%clk 0:00:33]}  Kf8 {[%clk 0:00:05]} 39. Bb4 {[%clk 0:00:22]}  Qc6+ {[%clk 0:00:03]} 40. f3 {[%clk 0:00:21]}  Rd7 {[%clk 0:00:03]} 41. Bxd6+ {[%clk 0:00:21]}  Qxd6 {[%clk 0:00:04]} 42. Rhb1 {[%clk 0:00:19]}  Qc6 {[%clk 0:00:04]} 43. Qh2 {[%clk 0:00:18]}  c3 {[%clk 0:00:04]} 44. Qb8+ {[%clk 0:00:16]}  Ke7 {[%clk 0:00:04]} 45. Rxb7 {[%clk 0:00:15]}  c2 {[%clk 0:00:04]} 46. Rxd7+ {[%clk 0:00:16]}  Kxd7 {[%clk 0:00:05]} 47. Rb7+ {[%clk 0:00:13]} 1-0


[Site "https://www.chess.com"]

[Event "Titled Tuesday Blitz March 07 Late 2023"]
[White "Balague Camps, Marc"]
[Black "Haydon, David L"]
[WhiteFideId "2297914"]
[BlackFideId "415405"]
[WhiteElo "2089"]
[BlackElo "2326"]
[Result "0-1"]
[Round "01"]
[TimeControl "180+2"]
[Date "2023.03.07"]
[WhiteClock "0:00:23"]
[BlackClock "0:00:24"]

1. d4 {[%clk 0:03:00]}  c6 {[%clk 0:03:00]} 2. c4 {[%clk 0:03:01]}  d5 {[%clk 0:03:00]} 3. cxd5 {[%clk 0:03:02]}  cxd5 {[%clk 0:03:00]} 4. Bf4 {[%clk 0:03:03]}  Nc6 {[%clk 0:03:00]} 5. e3 {[%clk 0:03:03]}  Nf6 {[%clk 0:03:00]} 6. Nc3 {[%clk 0:03:04]}  e6 {[%clk 0:02:59]} 7. Nf3 {[%clk 0:03:03]}  Be7 {[%clk 0:02:58]} 8. Bd3 {[%clk 0:03:04]}  O-O {[%clk 0:02:57]} 9. O-O {[%clk 0:03:04]}  a6 {[%clk 0:02:51]} 10. Rc1 {[%clk 0:03:02]}  Bd7 {[%clk 0:02:50]} 11. Ne5 {[%clk 0:03:02]}  Be8 {[%clk 0:02:49]} 12. Na4 {[%clk 0:02:55]}  Nxe5 {[%clk 0:02:47]} 13. Bxe5 {[%clk 0:02:53]}  Nd7 {[%clk 0:02:44]} 14. Bg3 {[%clk 0:02:47]}  Rc8 {[%clk 0:02:35]} 15. Qb3 {[%clk 0:02:46]}  b5 {[%clk 0:02:30]} 16. Rxc8 {[%clk 0:02:46]}  Qxc8 {[%clk 0:02:29]} 17. Nc3 {[%clk 0:02:45]}  Nb6 {[%clk 0:02:28]} 18. a4 {[%clk 0:02:41]}  b4 {[%clk 0:02:11]} 19. a5 {[%clk 0:02:32]}  Nc4 {[%clk 0:02:11]} 20. Ne4 {[%clk 0:02:25]}  Nxa5 {[%clk 0:02:04]} 21. Qa2 {[%clk 0:02:24]}  dxe4 {[%clk 0:02:02]} 22. Bxe4 {[%clk 0:02:25]}  Bb5 {[%clk 0:01:51]} 23. Qxa5 {[%clk 0:02:21]}  Bxf1 {[%clk 0:01:50]} 24. Kxf1 {[%clk 0:02:22]}  Qc4+ {[%clk 0:01:48]} 25. Ke1 {[%clk 0:02:21]}  Qc1+ {[%clk 0:01:47]} 26. Ke2 {[%clk 0:02:21]}  Qxb2+ {[%clk 0:01:47]} 27. Kf3 {[%clk 0:02:21]}  Qb3 {[%clk 0:01:36]} 28. Be5 {[%clk 0:01:54]}  Qd1+ {[%clk 0:01:23]} 29. Kg3 {[%clk 0:01:53]}  Qh5 {[%clk 0:01:21]} 30. h3 {[%clk 0:01:45]}  Bd6 {[%clk 0:01:08]} 31. f4 {[%clk 0:01:34]}  Bxe5 {[%clk 0:01:05]} 32. dxe5 {[%clk 0:01:29]}  Qe2 {[%clk 0:01:04]} 33. Qxb4 {[%clk 0:01:28]}  Qxe3+ {[%clk 0:01:03]} 34. Kg4 {[%clk 0:01:17]}  a5 {[%clk 0:00:56]} 35. Qb1 {[%clk 0:01:15]}  g6 {[%clk 0:00:53]} 36. Bf3 {[%clk 0:01:03]}  Qf2 {[%clk 0:00:47]} 37. h4 {[%clk 0:00:41]}  h5+ {[%clk 0:00:42]} 38. Kh3 {[%clk 0:00:41]}  Qe3 {[%clk 0:00:36]} 39. Kg3 {[%clk 0:00:37]}  Rd8 {[%clk 0:00:34]} 40. Qa1 {[%clk 0:00:19]}  Rd4 {[%clk 0:00:31]} 41. Qxa5 {[%clk 0:00:20]}  Qxf4+ {[%clk 0:00:30]} 42. Kf2 {[%clk 0:00:20]}  Qxh4+ {[%clk 0:00:29]} 43. Ke3 {[%clk 0:00:20]}  Qf4+ {[%clk 0:00:27]} 44. Ke2 {[%clk 0:00:20]}  Kg7 {[%clk 0:00:26]} 45. Qc5 {[%clk 0:00:19]}  Qd2+ {[%clk 0:00:22]} 46. Kf1 {[%clk 0:00:19]}  Rd3 {[%clk 0:00:19]} 47. Kg1 {[%clk 0:00:19]}  Qe3+ {[%clk 0:00:18]} 48. Qxe3 {[%clk 0:00:19]}  Rxe3 {[%clk 0:00:19]} 49. Kf2 {[%clk 0:00:20]}  Rxe5 {[%clk 0:00:20]} 50. Kg3 {[%clk 0:00:21]}  Rf5 {[%clk 0:00:21]} 51. Kh4 {[%clk 0:00:21]}  Rxf3 {[%clk 0:00:21]} 52. gxf3 {[%clk 0:00:21]}  Kf6 {[%clk 0:00:22]} 53. f4 {[%clk 0:00:21]}  e5 {[%clk 0:00:23]} 54. fxe5+ {[%clk 0:00:22]}  Kxe5 {[%clk 0:00:23]} 55. Kg5 {[%clk 0:00:23]}  Ke4 {[%clk 0:00:24]} 56. Kf6 {[%clk 0:00:23]}  Kf4 {[%clk 0:00:24]} 0-1


[Site "https://www.chess.com"]

[Event "Titled Tuesday Blitz March 07 Late 2023"]
[White "Lewicki, Miroslaw"]
[Black "Abdyzhaparov, Aidar"]
[WhiteFideId "1113380"]
[BlackFideId "13800361"]
[WhiteElo "2212"]
[BlackElo "2002"]
[Result "1-0"]
[Round "01"]
[TimeControl "180+2"]
[Date "2023.03.07"]
[WhiteClock "0:00:14"]
[BlackClock "0:00:01"]

1. g3 {[%clk 0:02:58]}  d6 {[%clk 0:03:00]} 2. Bg2 {[%clk 0:02:59]}  Nf6 {[%clk 0:03:00]} 3. Nf3 {[%clk 0:03:00]}  h5 {[%clk 0:03:01]} 4. O-O {[%clk 0:03:00]}  e5 {[%clk 0:03:01]} 5. d3 {[%clk 0:02:59]}  Nc6 {[%clk 0:03:00]} 6. e4 {[%clk 0:02:57]}  Be7 {[%clk 0:02:57]} 7. Nc3 {[%clk 0:02:57]}  Be6 {[%clk 0:02:55]} 8. d4 {[%clk 0:02:55]}  exd4 {[%clk 0:02:54]} 9. Nxd4 {[%clk 0:02:56]}  Nxd4 {[%clk 0:02:53]} 10. Qxd4 {[%clk 0:02:57]}  Qd7 {[%clk 0:02:51]} 11. f4 {[%clk 0:02:37]}  Bh3 {[%clk 0:02:37]} 12. Be3 {[%clk 0:02:26]}  Bxg2 {[%clk 0:02:32]} 13. Kxg2 {[%clk 0:02:26]}  h4 {[%clk 0:02:33]} 14. f5 {[%clk 0:02:27]}  Ng4 {[%clk 0:02:27]} 15. Qxg7 {[%clk 0:02:04]}  Nxe3+ {[%clk 0:02:21]} 16. Kf3 {[%clk 0:02:03]}  O-O-O {[%clk 0:02:09]} 17. Kxe3 {[%clk 0:02:02]}  Rdg8 {[%clk 0:02:04]} 18. Qd4 {[%clk 0:01:59]}  hxg3 {[%clk 0:02:04]} 19. hxg3 {[%clk 0:01:45]}  Rxg3+ {[%clk 0:02:00]} 20. Ke2 {[%clk 0:01:40]}  Rh2+ {[%clk 0:01:48]} 21. Rf2 {[%clk 0:01:39]}  Rgg2 {[%clk 0:01:40]} 22. Rxg2 {[%clk 0:01:38]}  Rxg2+ {[%clk 0:01:41]} 23. Kf3 {[%clk 0:01:35]}  Rg8 {[%clk 0:01:28]} 24. Qxa7 {[%clk 0:01:34]}  Qd8 {[%clk 0:01:18]} 25. Qa8+ {[%clk 0:01:27]}  Kd7 {[%clk 0:01:17]} 26. Qxb7 {[%clk 0:01:28]}  Bh4 {[%clk 0:01:14]} 27. Nd5 {[%clk 0:01:13]}  Rg3+ {[%clk 0:01:11]} 28. Ke2 {[%clk 0:01:13]}  Rg2+ {[%clk 0:01:00]} 29. Kd3 {[%clk 0:01:12]}  Rg3+ {[%clk 0:00:57]} 30. Kc4 {[%clk 0:01:10]}  Ke8 {[%clk 0:00:43]} 31. Rh1 {[%clk 0:00:45]}  Kf8 {[%clk 0:00:39]} 32. Qxc7 {[%clk 0:00:37]}  Qa8 {[%clk 0:00:21]} 33. Qxd6+ {[%clk 0:00:37]}  Kg8 {[%clk 0:00:18]} 34. Rxh4 {[%clk 0:00:37]}  Qxa2+ {[%clk 0:00:17]} 35. Kc5 {[%clk 0:00:28]}  Qa5+ {[%clk 0:00:13]} 36. Kc6 {[%clk 0:00:28]}  Qa4+ {[%clk 0:00:10]} 37. Kb7 {[%clk 0:00:21]}  Qb5+ {[%clk 0:00:06]} 38. Nb6 {[%clk 0:00:21]}  Qe8 {[%clk 0:00:05]} 39. Qf6 {[%clk 0:00:15]}  Rg7 {[%clk 0:00:02]} 40. Qh6 {[%clk 0:00:14]}  Kf8 {[%clk 0:00:01]} 41. Qh8+ {[%clk 0:00:14]}  Rg8 {[%clk 0:00:01]} 42. Qf6 {[%clk 0:00:14]} 1-0


[Site "https://www.chess.com"]

[Event "Titled Tuesday Blitz March 07 Late 2023"]
[White "ArtemDyachuk"]
[Black "Do Valle Cardoso, Lucas"]
[BlackFideId "2163144"]
[WhiteElo "2339"]
[BlackElo "2383"]
[Result "1-0"]
[Round "01"]
[TimeControl "180+2"]
[Date "2023.03.07"]
[WhiteClock "0:00:04"]
[BlackClock "0:00:10"]

1. e4 {[%clk 0:02:38]}  c5 {[%clk 0:02:57]} 2. Nf3 {[%clk 0:02:37]}  d6 {[%clk 0:02:57]} 3. d4 {[%clk 0:02:34]}  cxd4 {[%clk 0:02:58]} 4. Nxd4 {[%clk 0:02:35]}  Nf6 {[%clk 0:02:58]} 5. Nc3 {[%clk 0:02:36]}  a6 {[%clk 0:02:59]} 6. Bc4 {[%clk 0:02:36]}  e6 {[%clk 0:02:57]} 7. O-O {[%clk 0:02:35]}  b5 {[%clk 0:02:58]} 8. Bb3 {[%clk 0:02:35]}  Bb7 {[%clk 0:02:58]} 9. Re1 {[%clk 0:02:34]}  Nc6 {[%clk 0:02:52]} 10. Bg5 {[%clk 0:02:30]}  Be7 {[%clk 0:02:47]} 11. a4 {[%clk 0:01:59]}  b4 {[%clk 0:02:45]} 12. Na2 {[%clk 0:01:59]}  a5 {[%clk 0:02:30]} 13. c3 {[%clk 0:01:57]}  bxc3 {[%clk 0:02:30]} 14. Nxc3 {[%clk 0:01:58]}  O-O {[%clk 0:02:27]} 15. Ncb5 {[%clk 0:01:53]}  h6 {[%clk 0:02:21]} 16. Bh4 {[%clk 0:01:48]}  Nb4 {[%clk 0:02:12]} 17. f3 {[%clk 0:01:35]}  d5 {[%clk 0:01:57]} 18. e5 {[%clk 0:01:33]}  Nd7 {[%clk 0:01:57]} 19. Bxe7 {[%clk 0:01:30]}  Qxe7 {[%clk 0:01:58]} 20. Nd6 {[%clk 0:01:28]}  Ba6 {[%clk 0:01:53]} 21. f4 {[%clk 0:01:26]}  Nc5 {[%clk 0:01:50]} 22. Re3 {[%clk 0:00:55]}  Qa7 {[%clk 0:01:37]} 23. N4b5 {[%clk 0:00:28]}  Qb6 {[%clk 0:01:29]} 24. Qd4 {[%clk 0:00:20]}  Rab8 {[%clk 0:01:13]} 25. Kh1 {[%clk 0:00:14]}  Nxb3 {[%clk 0:00:54]} 26. Qxb6 {[%clk 0:00:09]}  Rxb6 {[%clk 0:00:55]} 27. Rxb3 {[%clk 0:00:10]}  Rc6 {[%clk 0:00:43]} 28. Rg3 {[%clk 0:00:06]}  Rc2 {[%clk 0:00:41]} 29. f5 {[%clk 0:00:06]}  Rxb2 {[%clk 0:00:38]} 30. f6 {[%clk 0:00:04]}  g6 {[%clk 0:00:37]} 31. h4 {[%clk 0:00:04]}  Bxb5 {[%clk 0:00:33]} 32. axb5 {[%clk 0:00:04]}  Ra8 {[%clk 0:00:33]} 33. b6 {[%clk 0:00:02]}  Nc6 {[%clk 0:00:28]} 34. b7 {[%clk 0:00:01]}  Rb8 {[%clk 0:00:29]} 35. Rc1 {[%clk 0:00:02]}  a4 {[%clk 0:00:12]} 36. Rxc6 {[%clk 0:00:02]}  Kh7 {[%clk 0:00:13]} 37. Rc8 {[%clk 0:00:01]}  R2xb7 {[%clk 0:00:13]} 38. Nxb7 {[%clk 0:00:01]}  Rxc8 {[%clk 0:00:13]} 39. Nd6 {[%clk 0:00:01]}  Rc1+ {[%clk 0:00:12]} 40. Kh2 {[%clk 0:00:02]}  Kg8 {[%clk 0:00:11]} 41. Ra3 {[%clk 0:00:02]}  Re1 {[%clk 0:00:11]} 42. Rxa4 {[%clk 0:00:02]}  Rxe5 {[%clk 0:00:11]} 43. Ra8+ {[%clk 0:00:03]}  Kh7 {[%clk 0:00:12]} 44. Nxf7 {[%clk 0:00:04]}  Rf5 {[%clk 0:00:10]} 45. Rh8# {[%clk 0:00:04]} 1-0


[Site "https://www.chess.com"]

[Event "Titled Tuesday Blitz March 07 Late 2023"]
[White "Coelho, Ramyres Santana"]
[Black "Altman, Joshua"]
[WhiteFideId "2120690"]
[BlackFideId "426210"]
[WhiteElo "1888"]
[BlackElo "2028"]
[Result "1-0"]
[Round "01"]
[TimeControl "180+2"]
[Date "2023.03.07"]
[WhiteClock "0:01:22"]
[BlackClock "0:00:44"]

1. e4 {[%clk 0:02:59]}  e6 {[%clk 0:03:00]} 2. d4 {[%clk 0:02:57]}  d5 {[%clk 0:03:00]} 3. Nc3 {[%clk 0:02:57]}  Nf6 {[%clk 0:03:00]} 4. e5 {[%clk 0:02:57]}  Nfd7 {[%clk 0:03:00]} 5. f4 {[%clk 0:02:58]}  c5 {[%clk 0:03:01]} 6. Nf3 {[%clk 0:02:59]}  Nc6 {[%clk 0:03:01]} 7. Be3 {[%clk 0:02:59]}  a6 {[%clk 0:03:01]} 8. a4 {[%clk 0:02:58]}  cxd4 {[%clk 0:02:50]} 9. Nxd4 {[%clk 0:02:57]}  Bb4 {[%clk 0:02:50]} 10. Bd3 {[%clk 0:02:44]}  Nc5 {[%clk 0:02:44]} 11. O-O {[%clk 0:02:40]}  Bxc3 {[%clk 0:02:38]} 12. bxc3 {[%clk 0:02:40]}  Nxd3 {[%clk 0:02:38]} 13. cxd3 {[%clk 0:02:40]}  O-O {[%clk 0:02:35]} 14. Qh5 {[%clk 0:02:39]}  f5 {[%clk 0:02:22]} 15. Rf3 {[%clk 0:02:31]}  Qe8 {[%clk 0:02:15]} 16. Qh4 {[%clk 0:02:28]}  Ne7 {[%clk 0:02:02]} 17. Rh3 {[%clk 0:02:20]}  h6 {[%clk 0:02:02]} 18. g4 {[%clk 0:02:16]}  fxg4 {[%clk 0:01:48]} 19. Qxg4 {[%clk 0:02:17]}  Qg6 {[%clk 0:01:44]} 20. Qxg6 {[%clk 0:02:06]}  Nxg6 {[%clk 0:01:45]} 21. Rf1 {[%clk 0:02:06]}  Bd7 {[%clk 0:01:45]} 22. a5 {[%clk 0:02:06]}  Rac8 {[%clk 0:01:44]} 23. Rg3 {[%clk 0:02:04]}  Ne7 {[%clk 0:01:39]} 24. f5 {[%clk 0:02:00]}  Nxf5 {[%clk 0:01:33]} 25. Nxf5 {[%clk 0:01:59]}  exf5 {[%clk 0:01:21]} 26. Bxh6 {[%clk 0:01:59]}  Rf7 {[%clk 0:01:21]} 27. d4 {[%clk 0:01:53]}  Kf8 {[%clk 0:01:09]} 28. Bf4 {[%clk 0:01:45]}  Be6 {[%clk 0:01:06]} 29. Rg6 {[%clk 0:01:45]}  Ke7 {[%clk 0:01:04]} 30. Rb1 {[%clk 0:01:42]}  Rc7 {[%clk 0:01:03]} 31. Rb6 {[%clk 0:01:39]}  Bc8 {[%clk 0:00:50]} 32. e6 {[%clk 0:01:36]}  Rc6 {[%clk 0:00:39]} 33. Rxc6 {[%clk 0:01:34]}  bxc6 {[%clk 0:00:39]} 34. exf7 {[%clk 0:01:34]}  Kxf7 {[%clk 0:00:40]} 35. Rxc6 {[%clk 0:01:33]}  Be6 {[%clk 0:00:41]} 36. Rc7+ {[%clk 0:01:32]}  Kf6 {[%clk 0:00:41]} 37. Be5+ {[%clk 0:01:33]}  Kg5 {[%clk 0:00:42]} 38. Rxg7+ {[%clk 0:01:33]}  Kh4 {[%clk 0:00:42]} 39. Kg2 {[%clk 0:01:30]}  f4 {[%clk 0:00:43]} 40. Bxf4 {[%clk 0:01:29]}  Bh3+ {[%clk 0:00:43]} 41. Kf3 {[%clk 0:01:29]}  Bg4+ {[%clk 0:00:44]} 42. Rxg4+ {[%clk 0:01:29]}  Kh5 {[%clk 0:00:44]} 43. Rg5+ {[%clk 0:01:26]}  Kh4 {[%clk 0:00:44]} 44. Rxd5 {[%clk 0:01:22]}  Kh3 {[%clk 0:00:44]} 45. Rh5# {[%clk 0:01:22]} 1-0


[Site "https://www.chess.com"]